bitfinex/quotes_ETHUSD_20251031
["timestamp","ask_amount","ask_price","bid_price","bid_amount"]
[1761893428719,0.001,3831.5,3831.4,2.25991333]
[1761893428901,0.001,3831.5,3831.4,2.28901333]
[1761893430992,0.4825,3831.5,3831.4,0.43290493]
[1761893431317,0.9613,3831.5,3831.4,0.23696409]
[1761893432515,0.9613,3831.5,3831.4,0.1324]
[1761893434746,0.9613,3831.5,3831.4,1.9594084]
[1761893435747,0.9613,3831.5,3831.4,0.1324]
[1761893436806,3.47257794,3831.5,3831.4,0.002]
[1761893437006,3.49196012,3831.5,3831.4,0.002]
[1761893438710,4.05001629,3831.5,3831.4,0.002]
[1761893438908,5.44969629,3831.5,3831.4,0.002]
[1761893439252,5.43031411,3831.5,3831.4,0.002]
[1761893439448,4.87225794,3831.5,3831.4,0.002]
[1761893439631,5.44930914,3831.5,3831.4,0.002]
[1761893439805,5.42992696,3831.5,3831.4,0.002]
[1761893440440,4.87225794,3831.5,3831.4,0.002]
[1761893440646,4.89164012,3831.5,3831.4,0.002]
[1761893442068,4.99625179,3831.5,3831.4,0.002]
[1761893461491,5.55381449,3831.5,3831.4,0.002]
[1761893461795,5.53443231,3831.5,3831.4,0.002]
[1761893467377,5.42982064,3831.5,3831.4,0.002]
[1761893469798,5.43175837,3831.5,3831.4,0.002]
[1761893472924,4.95295837,3831.5,3831.4,0.002]
[1761893473115,5.44984055,3831.5,3831.4,0.002]
[1761893473314,5.43045837,3831.5,3831.4,0.002]
[1761893473728,5.43045837,3831.5,3831.1,0.002]
[1761893473730,2.23260777,3831.2,3831.1,0.002]
[1761893474024,10.22357177,3831.2,3831.1,0.002]
[1761893474234,10.68168959,3831.2,3831.1,0.002]
[1761893474890,18.45230451,3831.2,3831.1,0.002]
[1761893475096,26.78495551,3831.2,3831.1,0.002]
[1761893475296,28.2454135,3831.2,3831.1,0.002]
[1761893475730,2.23279855,3830.8,3830.7,0.002]
[1761893475894,10.76008847,3830.8,3830.7,0.002]
[1761893476091,11.21820629,3830.8,3830.7,0.002]
[1761893476339,12.53198439,3830.8,3830.7,0.002]
[1761893476902,12.18395847,3830.8,3830.7,0.002]
[1761893477211,11.25364002,3830.8,3830.7,0.002]
[1761893477595,11.14899359,3830.8,3830.7,0.002]
[1761893481546,10.13103213,3830.8,3830.7,0.002]
[1761893483035,10.47905805,3830.8,3830.7,0.002]
[1761893483236,10.58370968,3830.8,3830.7,0.002]
[1761893483412,20.72294196,3830.6,3829.1,0.01]
[1761893483616,20.72294196,3830.6,3829.4,0.10465163]
[1761893483617,4.59873286,3830.6,3829.4,0.10465163]
[1761893483844,7.07314904,3830.6,3829.4,0.10465163]
[1761893484031,7.40179278,3830.6,3829.4,0.10465163]
[1761893484546,8.80147278,3830.6,3829.1,0.01]
[1761893484736,8.90612496,3830.6,3829.3,0.10465218]
[1761893484931,8.90612496,3830.6,3829.1,0.01]
[1761893484932,8.80147278,3830.6,3829.1,0.01]
[1761893485138,6.34643878,3830.6,3829.1,0.0411]
[1761893485340,6.34643878,3830.6,3829.1,0.14575218]
[1761893485760,5.78693835,3830.6,3829.1,0.14575218]
[1761893485921,6.34446912,3830.6,3829.1,0.14575218]
[1761893488935,6.34446912,3830.6,3829.1,0.11465218]
[1761893489141,6.34446912,3830.6,3829.1,0.14575218]
[1761893490071,6.34446912,3830.6,3829.7,0.001]
[1761893490627,1.39968,3830.6,3830.5,0.0331]
[1761893490845,1.41906218,3830.6,3830.5,0.0331]
[1761893491066,1.82456618,3830.6,3830.5,0.0331]
[1761893491254,0.002,3830.9,3830.5,0.0642]
[1761893491561,0.02138218,3830.9,3830.8,0.0311]
[1761893491949,0.02138218,3830.9,3830.8,0.0622]
[1761893492153,0.002,3830.9,3830.8,6.39713448]
[1761893492347,0.002,3830.9,3830.8,0.8848518]
[1761893493263,0.002,3830.9,3830.8,2.71214635]
[1761893493581,0.002,3830.9,3830.8,0.8848518]
[1761893495585,0.002,3830.9,3830.8,0.98944678]
[1761893496087,0.002,3830.9,3830.8,2.81674133]
[1761893496889,0.002,3830.9,3830.8,7.32438126]
[1761893497252,0.002,3830.9,3830.8,2.81674133]
[1761893497457,0.002,3830.9,3830.8,1.99408953]
[1761893497653,0.002,3830.9,3830.8,0.13569498]
[1761893497856,0.002,3830.9,3830.8,4.67443491]
[1761893498670,0.002,3830.9,3830.8,2.82720578]
[1761893498877,0.002,3830.9,3830.8,7.33484571]
[1761893500603,0.002,3830.9,3830.8,7.46524571]
[1761893501997,0.002,3830.9,3830.8,8.86492571]
[1761893503906,0.002,3830.9,3830.8,13.24216564]
[1761893504085,0.002,3830.9,3830.8,8.73452571]
[1761893511033,0.002,3830.9,3830.8,1.96298953]
[1761893511533,0.002,3830.9,3830.8,1.99408953]
[1761893512225,0.002,3830.9,3830.8,2.02019373]
[1761893512926,0.002,3830.9,3830.8,1.96298953]
[1761893513237,0.002,3830.9,3830.8,6.50172946]
[1761893513440,0.002,3830.9,3830.8,2.79620037]
[1761893513621,0.002,3830.9,3830.8,1.96298953]
[1761893513810,0.002,3830.9,3830.8,2.09338953]
[1761893514215,0.002,3830.9,3830.8,0.26609498]
[1761893514437,0.002,3830.9,3830.8,0.10459498]
[1761893514438,1.1594,3830.9,3830.8,0.10459498]
[1761893514647,1.1594,3830.9,3830.6,0.001]
[1761893514648,0.6656,3830.9,3830.6,0.001]
[1761893514847,0.002,3830.9,3830.7,0.10460292]
[1761893519233,0.4806,3830.8,3830.7,0.10460292]
[1761893520040,0.002,3830.9,3830.7,0.10460292]
[1761893520239,0.02138218,3830.9,3830.7,0.10460292]
[1761893520954,0.02138218,3830.9,3830.8,0.0311]
[1761893521111,0.002,3830.9,3830.8,2.34913304]
[1761893521444,0.002,3830.9,3830.8,2.38023304]
[1761893521803,0.002,3830.9,3830.8,2.32302884]
[1761893522539,0.002,3830.9,3830.8,2.38023304]
[1761893522741,0.002,3830.9,3830.8,2.35412884]
[1761893523743,0.002,3830.9,3830.8,2.38023304]
[1761893524149,0.002,3830.9,3830.8,3.88449572]
[1761893524332,0.002,3830.9,3830.8,2.48481572]
[1761893524536,0.002,3830.9,3830.8,2.61521572]
[1761893526463,0.002,3830.9,3830.8,2.58911152]
[1761893527055,0.002,3830.9,3830.8,4.01489572]
[1761893527258,0.002,3831.3,3831.2,1.82710377]
[1761893527455,0.002,3831.3,3831.2,12.80466078]
[1761893527666,0.002,3831.3,3831.2,12.8096593]
[1761893527869,0.002,3831.3,3831.2,8.40657908]
[1761893528971,0.002,3831.3,3831.2,8.37547908]
[1761893529867,0.002,3831.3,3831.2,8.40657908]
[1761893531958,0.002,3831.3,3831.2,12.91421901]
[1761893533068,1e-08,3831.5,3831.4,1.8581084]
[1761893533270,1e-08,3831.5,3831.4,4.89797926]
[1761893533472,1e-08,3831.5,3831.4,5.33458326]
[1761893533673,1e-08,3831.5,3831.4,5.30848314]
[1761893537063,0.002,3831.7,3831.6,2.23241703]
[1761893537245,0.002,3831.7,3831.6,9.18084333]
[1761893537447,0.002,3831.7,3831.6,9.18584458]
[1761893537641,0.002,3831.7,3831.6,9.29038435]
[1761893537838,0.001,3832.3,3832.2,1.826627]
[1761893538091,0.001,3832.3,3832.2,7.7911416]
[1761893538378,0.001,3832.3,3832.2,8.88833062]
[1761893538569,0.001,3832.3,3832.2,8.99286519]
[1761893538737,0.001,3832.3,3832.2,8.96176519]
[1761893541755,0.4938,3832.3,3832.2,8.93066519]
[1761893542074,0.9642,3832.3,3832.2,7.9688815]
[1761893543475,0.9642,3832.3,3832.2,3.46124157]
[1761893543674,0.9642,3832.3,3832.2,3.356707]
[1761893544564,0.4938,3832.3,3832.2,3.356707]
[1761893545345,0.9642,3832.3,3832.2,3.356707]
[1761893545763,0.9642,3832.3,3832.2,1.957027]
[1761893548098,0.9642,3832.3,3832.2,0.1304]
[1761893549067,0.9642,3832.3,3832.2,1.957027]
[1761893549900,0.9642,3832.3,3832.2,0.1304]
[1761893551478,2.79080054,3832.3,3831.8,0.1304]
[1761893551679,0.78190223,3832.2,3831.8,0.1304]
[1761893551917,0.6736,3831.9,3831.8,0.1304]
[1761893552281,1.144,3831.9,3831.8,0.1304]
[1761893552483,1.144,3831.9,3830.8,0.002]
[1761893552806,0.4928,3831.5,3830.8,0.002]
[1761893553107,0.4928,3831.5,3831.4,0.1304]
[1761893553526,0.9632,3831.5,3831.4,0.1304]
[1761893555827,0.4928,3831.5,3831.4,1.9574084]
[1761893556217,0.9632,3831.5,3831.4,1.9574084]
[1761893556539,0.9632,3831.5,3831.4,0.1304]
[1761893556891,0.9632,3831.5,3831.4,1.9574084]
[1761893559096,0.9632,3831.5,3831.4,1.9594084]
[1761893560240,0.9632,3831.5,3831.4,0.1324]
[1761893564171,0.9632,3831.5,3831.4,1.9594084]
[1761893565323,0.4928,3831.5,3831.4,1.9594084]
[1761893565530,0.1808,3831.9,3831.4,2.36915877]
[1761893565828,0.6512,3831.9,3831.5,0.02609943]
[1761893566033,0.6512,3831.9,3831.7,0.1304]
[1761893566256,0.4704,3831.8,3831.7,0.1304]
[1761893566455,0.9632,3831.8,3831.7,0.1304]
[1761893568055,0.9632,3831.8,3831.7,1.95726536]
[1761893568269,0.9632,3831.8,3831.7,0.1304]
[1761893569782,0.001,3832.3,3831.8,1.82681768]
[1761893569983,0.454,3832.3,3832.1,0.1304]
[1761893570485,0.4585,3832.2,3832.1,0.1304]
[1761893570887,0.9115,3832.2,3832.1,1.98317001]
[1761893571186,0.001,3832.3,3832.2,1.826627]
[1761893571886,0.4595,3832.3,3832.2,1.826627]
[1761893575092,0.001,3832.3,3832.2,2.23610162]
[1761893578492,0.001,3832.3,3832.2,2.39760162]
[1761893578678,0.001,3832.3,3832.2,3.79728162]
[1761893578858,0.001,3832.3,3832.2,3.82337629]
[1761893579557,0.001,3832.3,3832.2,3.79227629]
[1761893579767,0.001,3832.3,3832.2,2.36650162]
[1761893579965,0.001,3832.3,3832.2,2.39760162]
[1761893583315,0.001,3832.3,3832.2,2.36650162]
[1761893585815,0.001,3832.3,3832.2,2.39259629]
[1761893586003,0.001,3832.3,3832.2,2.42369629]
[1761893588809,0.001,3832.3,3832.2,2.36650162]
[1761893589834,0.001,3832.3,3832.2,2.33540162]
[1761893590605,0.4595,3832.3,3832.2,2.33540162]
[1761893590846,0.9125,3832.3,3832.2,2.33540162]
[1761893591253,0.4595,3832.3,3832.2,2.33540162]
[1761893592328,0.001,3832.3,3832.2,2.33540162]
[1761893592756,0.4595,3832.3,3832.2,2.33540162]
[1761893594762,0.9125,3832.3,3832.2,2.33540162]
[1761893594976,0.9125,3832.3,3832.2,0.1304]
[1761893596838,0.9125,3832.3,3831.9,0.002]
[1761893597163,0.51478218,3832.2,3832.0,0.1304]
[1761893597533,0.4906,3832.1,3832.0,0.1304]
[1761893597926,0.986,3832.1,3832.0,0.1304]
[1761893602789,0.9774,3832.1,3832.0,0.1304]
[1761893603858,1.25983155,3832.1,3832.0,0.1304]
[1761893604057,0.9774,3832.1,3832.0,0.1304]
[1761893604992,0.02038218,3832.3,3832.0,0.1304]
[1761893604993,0.001,3832.3,3832.0,0.1304]
[1761893605193,0.4878,3832.3,3832.0,0.15649603]
[1761893605757,0.4878,3832.3,3832.0,0.1304]
[1761893605974,0.4524,3832.1,3832.0,0.1304]
[1761893606581,0.9392,3832.1,3832.0,0.1304]
[1761893608076,0.4524,3832.1,3832.0,0.1304]
[1761893608282,0.001,3832.3,3832.0,0.1304]
[1761893608598,0.4878,3832.3,3832.0,0.1304]
[1761893608798,0.4878,3832.3,3832.2,0.1304]
[1761893609208,0.9402,3832.3,3832.2,0.1304]
[1761893613028,0.9402,3832.3,3832.0,0.1304]
[1761893613177,0.7829549,3832.2,3832.0,0.1304]
[1761893613377,0.4524,3832.1,3832.0,0.1304]
[1761893613594,0.9392,3832.1,3832.0,0.1304]
[1761893619651,1.82672233,3832.0,3831.9,0.002]
[1761893619810,7.41808156,3832.0,3831.9,0.002]
[1761893620017,7.39869938,3832.0,3831.9,0.002]
[1761893620211,8.32133311,3832.0,3831.9,0.002]
[1761893621927,8.88032012,3832.0,3831.9,0.002]
[1761893622127,10.68550412,3832.0,3831.9,0.002]
[1761893623736,10.79010266,3832.0,3831.9,0.002]
[1761893627045,10.68550412,3832.0,3831.9,0.002]
[1761893627251,10.12651711,3832.0,3831.9,0.002]
[1761893634687,5.62414006,3832.0,3831.9,0.002]
[1761893635497,6.18243348,3832.0,3831.9,0.002]
[1761893637056,5.69563348,3832.0,3831.9,0.002]
[1761893637384,6.18753348,3832.0,3831.9,0.002]
[1761893638583,3.46340715,3832.0,3831.9,0.002]
[1761893638761,4.19008451,3832.0,3831.9,0.002]
[1761893642380,3.69818451,3832.0,3831.9,0.002]
[1761893642575,0.47178218,3832.0,3831.9,0.002]
[1761893642778,0.001,3832.1,3831.9,4.66587705]
[1761893642982,0.001,3832.1,3832.0,0.0311]
[1761893643284,0.001,3832.1,3832.0,0.72192718]
[1761893643507,0.001,3832.1,3832.0,0.0622]
[1761893644102,0.001,3832.1,3832.0,0.08829603]
[1761893644517,0.001,3832.1,3832.0,0.0622]
[1761893645628,0.001,3832.1,3832.0,0.0311]
[1761893647227,0.001,3832.1,3832.0,0.0622]
[1761893647533,0.001,3832.1,3832.0,0.16676217]
[1761893647835,0.001,3832.1,3832.0,0.37935185]
[1761893649134,0.001,3832.1,3832.0,0.13566217]
[1761893655832,0.001,3832.1,3832.0,1.98848053]
[1761893656133,0.001,3832.1,3832.0,2.01958053]
[1761893656735,0.001,3832.1,3832.0,0.1617582]
[1761893657040,0.001,3832.1,3832.0,1.9934845]
[1761893657347,0.001,3832.1,3832.0,2.79485181]
[1761893657700,0.001,3832.1,3832.0,0.96812948]
[1761893657903,0.001,3832.1,3832.0,0.13566217]
[1761893659898,0.457,3832.1,3832.0,0.10456217]
[1761893660076,0.9566,3832.1,3832.0,0.10456217]
[1761893661696,0.001,3832.1,3832.0,0.13566217]
[1761893665995,0.001,3832.1,3832.0,0.10456217]
[1761893666898,0.001,3832.1,3832.0,0.23496217]
[1761893669109,0.001,3832.1,3832.0,0.26606217]
[1761893669310,0.001,3832.1,3832.0,1.02802715]
[1761893670293,0.457,3832.1,3832.0,0.23496217]
[1761893670730,0.001,3832.1,3832.0,0.23496217]
[1761893671832,0.001,3832.1,3832.0,2.11888053]
[1761893672032,0.001,3832.1,3832.0,0.2921582]
[1761893674239,0.001,3832.1,3832.0,0.26606217]
[1761893674408,0.001,3832.1,3832.0,0.23496217]
[1761893676436,0.3016,3832.3,3832.0,0.23496217]
[1761893676599,0.02038218,3832.5,3832.0,0.23496217]
[1761893676798,0.02038218,3832.5,3832.0,0.1304]
[1761893677036,0.02038218,3832.5,3832.1,0.78422453]
[1761893678136,0.456,3832.2,3832.1,0.78422453]
[1761893678927,0.9556,3832.2,3832.1,0.78422453]
[1761893679913,0.456,3832.2,3832.1,0.78422453]
[1761893680115,0.4996,3832.4,3832.1,0.78422453]
[1761893681544,0.001,3832.5,3832.1,0.78422453]
[1761893681746,0.51998218,3832.5,3832.1,0.78422453]
[1761893683948,0.456,3832.2,3832.1,0.78422453]
[1761893684338,0.9556,3832.2,3832.0,0.1304]
[1761893684542,0.47538218,3832.1,3832.0,0.65038218]
[1761893684854,0.97498218,3832.1,3832.0,0.51998218]
[1761893685052,1.82672233,3832.0,3831.9,0.002]
[1761893685256,3.24515328,3832.0,3831.9,0.002]
[1761893686666,0.9556,3832.0,3831.9,0.002]
[1761893686960,0.456,3832.0,3831.9,0.002]
[1761893687155,0.01938218,3832.3,3831.9,0.002]
[1761893687469,0.5006,3832.5,3831.9,0.002]
[1761893687470,0.01938218,3832.2,3831.9,0.002]
[1761893687623,0.01938218,3832.3,3831.9,0.10858404]
[1761893687828,0.51898218,3832.3,3831.9,0.10858404]
[1761893689123,0.456,3832.0,3831.9,0.10858404]
[1761893689664,0.9556,3832.0,3831.9,0.10858404]
[1761893689862,0.456,3832.0,3831.9,0.10858404]
[1761893690061,0.4839,3832.0,3831.9,0.10858404]
[1761893690231,0.9488,3832.0,3831.9,0.10858404]
[1761893693766,0.48428218,3832.3,3831.9,0.10858404]
[1761893694263,0.48528218,3832.3,3831.9,0.10858404]
[1761893694741,0.02038218,3832.3,3831.9,0.23898404]
[1761893695150,0.48528218,3832.3,3831.9,0.23898404]
[1761893695335,0.4839,3832.0,3831.9,0.1324]
[1761893695936,0.9488,3832.0,3831.9,0.1324]
[1761893696866,0.4839,3832.0,3831.9,0.1324]
[1761893698170,0.9488,3832.0,3831.9,0.1324]
[1761893699144,0.48528218,3832.3,3831.9,0.1324]
[1761893699349,0.4649,3832.2,3831.9,0.1324]
[1761893699759,0.01938218,3832.1,3831.9,0.1324]
[1761893700159,0.4649,3832.2,3831.9,0.1324]
[1761893700675,0.4839,3832.0,3831.9,0.1324]
[1761893701369,0.4649,3832.2,3831.9,0.1324]
[1761893703780,0.4839,3832.0,3831.9,0.1324]
[1761893704144,0.9488,3832.0,3831.9,0.1324]
[1761893709784,0.4839,3832.0,3831.9,0.1324]
[1761893710151,0.9488,3832.0,3831.9,0.1324]
[1761893710350,0.4839,3832.0,3831.9,0.1324]
[1761893710781,0.02038218,3832.3,3831.9,0.3615]
[1761893711148,0.48528218,3832.3,3831.9,0.3615]
[1761893711957,0.02038218,3832.3,3832.2,0.2291]
[1761893712180,0.001,3832.3,3832.2,0.2291]
[1761893712601,0.001,3832.3,3832.0,0.1146]
[1761893712754,0.001,3832.3,3832.2,0.2291]
[1761893714487,0.001,3832.3,3832.1,0.15649535]
[1761893715080,0.001,3832.3,3832.2,0.2291]
[1761893716534,0.001,3832.3,3832.2,2.28861374]
[1761893717289,0.001,3832.3,3832.2,0.46198674]
[1761893718418,0.001,3832.3,3832.2,2.28861374]
[1761893723996,0.001,3832.3,3832.2,0.46198674]
[1761893724199,0.001,3832.3,3832.2,2.05951374]
[1761893726228,0.001,3832.3,3832.2,2.51451374]
[1761893727426,0.4726,3832.3,3832.1,0.002]
[1761893730321,0.9266,3832.3,3832.1,0.002]
[1761893730528,0.4726,3832.3,3832.1,0.002]
[1761893730683,0.4716,3832.2,3832.1,0.002]
[1761893731023,0.9256,3832.2,3832.1,0.002]
[1761893733478,0.4716,3832.2,3832.1,0.002]
[1761893735315,0.02038218,3832.3,3832.1,0.002]
[1761893735487,0.001,3832.3,3832.1,0.002]
[1761893735690,0.02038218,3832.3,3832.1,0.002]
[1761893737008,0.47438218,3832.3,3832.1,0.002]
[1761893738916,0.02038218,3832.3,3832.1,0.002]
[1761893739618,0.47438218,3832.3,3832.1,0.002]
[1761893741348,2.30096796,3832.3,3832.1,0.002]
[1761893741551,0.4716,3832.2,3832.1,0.002]
[1761893741764,0.9256,3832.2,3832.1,0.002]
[1761893742462,2.752227,3832.2,3832.1,0.002]
[1761893742614,3.02958357,3832.2,3832.1,0.002]
[1761893744949,1.20295657,3832.2,3832.1,0.002]
[1761893745115,0.4716,3832.2,3832.1,0.002]
[1761893745524,0.9256,3832.2,3832.1,0.002]
[1761893745747,2.752227,3832.2,3832.1,0.002]
[1761893746137,2.298227,3832.2,3832.1,0.002]
[1761893746338,1.826627,3832.2,3832.1,0.002]
[1761893746951,2.298227,3832.2,3832.1,0.002]
[1761893750451,0.1314,3832.3,3832.1,0.2311]
[1761893750750,1.95797933,3832.3,3832.2,0.2291]
[1761893750951,1.82757933,3832.3,3832.1,0.002]
[1761893751151,1.84600918,3832.2,3832.1,0.002]
[1761893751329,2.29930918,3832.2,3832.1,0.002]
[1761893754457,0.001,3832.3,3832.1,0.2311]
[1761893756053,0.001,3832.3,3832.2,0.1304]
[1761893756753,0.001,3832.3,3832.2,0.3595]
[1761893758559,0.001,3832.3,3832.2,0.1304]
[1761893761037,0.4543,3832.3,3832.2,0.1304]
[1761893761460,0.001,3832.3,3832.2,0.1304]
[1761893769231,0.001,3832.3,3832.2,0.15649467]
[1761893770635,0.001,3832.3,3832.2,0.1304]
[1761893774412,0.001,3832.3,3832.2,0.3437]
[1761893774699,0.001,3832.3,3832.2,1.16452593]
[1761893777302,0.001,3832.3,3832.2,2.99115293]
[1761893777612,0.001,3832.3,3832.2,3.22025293]
[1761893778361,0.001,3832.3,3832.2,2.99115293]
[1761893782216,0.001,3832.3,3832.2,3.0172476]
[1761893782427,0.001,3832.3,3832.2,3.2463476]
[1761893783118,0.001,3832.3,3832.2,3.22025293]
[1761893783291,0.001,3832.3,3832.2,7.4919297]
[1761893783490,0.001,3832.3,3832.2,7.7210297]
[1761893784321,0.001,3832.3,3832.2,7.8514297]
[1761893785420,0.001,3832.3,3832.2,8.87268698]
[1761893791207,0.001,3832.3,3832.2,3.00695293]
[1761893792826,0.001,3832.3,3832.2,3.23605293]
[1761893795035,0.001,3832.3,3832.2,3.00695293]
[1761893795707,0.9357,3832.3,3832.2,0.2608]
[1761893798241,0.9357,3832.3,3832.2,2.087427]
[1761893798551,0.9357,3832.3,3832.2,0.2608]
[1761893798901,0.4546,3832.3,3832.2,0.2608]
[1761893799503,0.9357,3832.3,3832.2,0.1304]
[1761893811258,0.001,3832.3,3832.2,0.1304]
[1761893811759,0.001,3832.3,3832.2,1.957027]
[1761893812070,0.001,3832.3,3832.2,0.1304]
[1761893812071,0.9298,3832.3,3832.2,0.1304]
[1761893828067,1.826627,3832.2,3832.1,0.002]
[1761893828272,8.75083793,3832.2,3832.1,0.002]
[1761893828459,9.31192644,3832.2,3832.1,0.002]
[1761893828878,10.71160644,3832.2,3832.1,0.002]
[1761893830258,9.31192644,3832.2,3832.1,0.002]
[1761893830458,3.78989239,3832.2,3832.1,0.002]
[1761893830776,3.80927457,3832.2,3832.1,0.002]
[1761893831393,3.24818606,3832.2,3832.1,0.002]
[1761893831885,1.42155906,3832.2,3832.1,0.002]
[1761893832096,3.24818606,3832.2,3832.1,0.002]
[1761893834086,1.42155906,3832.2,3832.1,0.002]
[1761893834292,0.94818218,3832.2,3832.1,0.002]
[1761893835975,1.07858218,3832.2,3832.1,0.002]
[1761893836391,0.48098218,3832.2,3832.1,0.002]
[1761893836554,0.96088218,3832.2,3832.1,0.002]
[1761893837687,0.01938218,3832.2,3832.1,0.002]
[1761893837886,0.02038218,3832.3,3832.1,0.002]
[1761893838515,0.001,3832.3,3832.1,0.002]
[1761893839733,0.4984,3832.3,3832.1,0.002]
[1761893842094,0.001,3832.3,3832.1,0.002]
[1761893842319,0.001,3832.3,3832.2,0.2291]
[1761893843832,0.001,3832.3,3832.1,0.31828132]
[1761893844031,0.4719,3832.2,3832.1,0.1324]
[1761893844330,0.4719,3832.2,3831.7,0.002]
[1761893844504,0.4719,3832.2,3832.1,0.1304]
[1761893847859,0.9693,3832.2,3832.1,0.1304]
[1761893848013,0.4719,3832.2,3832.1,0.1304]
[1761893848212,0.001,3832.3,3832.1,0.1304]
[1761893848462,0.001,3832.3,3832.1,1.95706592]
[1761893848654,0.001,3832.3,3832.2,0.1145]
[1761893850743,0.001,3832.3,3832.2,1.96722167]
[1761893850931,0.001,3832.3,3832.2,1.941127]
[1761893851137,0.001,3832.3,3832.2,2.04568425]
[1761893851643,0.001,3832.3,3832.2,0.10455725]
[1761893851949,0.001,3832.3,3832.2,0.21905725]
[1761893852442,0.001,3832.3,3832.2,2.04568425]
[1761893852642,0.001,3832.3,3832.2,1.941127]
[1761893852846,0.001,3832.3,3832.2,0.1145]
[1761893855163,0.001,3832.3,3832.1,0.23495725]
[1761893855630,0.001,3832.3,3832.1,2.06162277]
[1761893856231,0.001,3832.3,3832.2,0.1145]
[1761893857363,0.001,3832.3,3832.2,1.96722167]
[1761893857565,0.001,3832.3,3832.2,2.18743956]
[1761893857782,0.001,3832.3,3832.2,6.90829699]
[1761893857963,0.001,3832.3,3832.2,6.88220232]
[1761893858571,0.001,3832.3,3832.2,8.28188232]
[1761893858876,0.001,3832.3,3832.2,8.16738232]
[1761893859033,0.001,3832.3,3832.2,8.28188232]
[1761893859456,0.001,3832.3,3832.2,1.83895268]
[1761893859666,0.001,3832.3,3832.2,3.66557968]
[1761893860279,0.9703,3832.3,3832.2,3.55107968]
[1761893860674,0.001,3832.3,3832.2,3.78007968]
[1761893861271,0.001,3832.3,3832.2,8.28188232]
[1761893867190,0.001,3832.3,3832.2,8.16738232]
[1761893867487,0.001,3832.3,3832.2,1.50423479]
[1761893867689,0.001,3832.3,3832.2,1.39968]
[1761893868074,0.001,3832.3,3832.1,0.10455917]
[1761893868292,0.001,3832.3,3831.7,1.54027807]
[1761893868654,0.001,3832.3,3832.0,1.82671996]
[1761893868853,0.001,3832.3,3832.2,0.1145]
[1761893869297,0.001,3832.3,3832.1,1.85276925]
[1761893869718,0.001,3832.3,3832.2,0.1145]
[1761893870796,0.001,3832.3,3832.2,1.941127]
[1761893871513,0.001,3832.3,3832.2,0.1145]
[1761893872318,0.001,3832.3,3832.2,1.941127]
[1761893872520,0.001,3832.3,3832.2,7.25170995]
[1761893872728,0.001,3832.3,3832.2,8.87043026]
[1761893874040,0.001,3832.3,3832.2,8.75593026]
[1761893874191,0.4867,3832.3,3832.2,3.33084731]
[1761893874610,0.001,3832.3,3832.2,3.44534731]
[1761893875133,0.001,3832.3,3832.2,3.58594198]
[1761893877624,0.001,3832.3,3832.2,3.71634198]
[1761893881504,0.001,3832.3,3832.2,8.21814462]
[1761893881706,0.001,3832.3,3832.2,10.0317158]
[1761893882509,0.001,3832.3,3832.2,10.4372198]
[1761893884546,0.001,3832.9,3832.6,1.94093636]
[1761893884742,0.001,3832.9,3832.8,6.01598264]
[1761893884953,0.001,3832.9,3832.8,7.97272369]
[1761893885156,0.001,3832.9,3832.8,9.18309969]
[1761893886167,1e-08,3833.1,3833.0,1.94074576]
[1761893886346,1e-08,3833.1,3833.0,2.09723498]
[1761893886551,1e-08,3833.1,3833.0,2.21173498]
[1761893887043,1e-08,3833.1,3833.0,4.01691898]
[1761893887245,1e-08,3833.1,3833.0,9.66281072]
[1761893887421,1e-08,3833.1,3833.0,9.6367215]
[1761893889256,1e-08,3833.7,3833.4,0.405504]
[1761893889561,1e-08,3833.7,3833.6,6.44226257]
[1761893889886,1e-08,3833.7,3833.6,9.66703996]
[1761893890042,1e-08,3833.7,3833.6,9.78153996]
[1761893890780,1e-08,3833.7,3833.6,9.37603596]
[1761893891891,1e-08,3833.7,3833.6,9.78153996]
[1761893894178,1e-08,3833.7,3833.6,13.63153996]
[1761893894743,0.00100001,3833.7,3833.6,14.27143996]
[1761893898248,0.001,3834.1,3834.0,2.23127343]
[1761893898588,0.001,3834.1,3834.0,8.27333849]
[1761893898742,0.001,3834.1,3834.0,8.36175607]
[1761893898942,0.001,3834.1,3834.0,12.31622785]
[1761893899264,0.001,3834.1,3834.0,12.44662785]
[1761893899475,0.001,3834.1,3834.0,14.07986738]
[1761893899646,0.001,3834.1,3834.0,8.94356074]
[1761893899981,0.001,3834.1,3834.0,13.44536338]
[1761893900886,0.001,3834.1,3834.0,8.94356074]
[1761893901177,0.9252,3834.1,3834.0,13.31496338]
[1761893902274,0.9252,3834.1,3834.0,11.91528338]
[1761893902642,0.9252,3834.1,3834.0,13.31496338]
[1761893902969,0.9252,3834.1,3834.0,9.46496338]
[1761893903684,0.453,3834.1,3834.0,9.46496338]
[1761893904593,0.9252,3834.1,3834.0,9.46496338]
[1761893906082,0.001,3834.1,3834.0,9.57946338]
[1761893906578,0.001,3834.1,3834.0,9.46496338]
[1761893907500,0.001,3834.1,3834.0,10.47929331]
[1761893907905,0.9252,3834.1,3834.0,10.47929331]
[1761893908076,0.9252,3834.1,3834.0,8.84605378]
[1761893910711,0.453,3834.1,3834.0,8.84605378]
[1761893910899,0.9252,3834.1,3834.0,1.93024121]
[1761893911211,0.9252,3834.1,3834.0,2.06064121]
[1761893913828,0.9252,3834.1,3834.0,0.23487178]
[1761893913984,0.9252,3834.1,3834.0,0.1304]
[1761893915312,0.9252,3834.1,3834.0,1.95616943]
[1761893916427,0.9252,3834.1,3834.0,0.1304]